lending/lending_fUSD_20240510
["ID","MTS","AMOUNT","RATE_DAILY","PERIOD"]
[326779913,1715357448736,-500.0,0.00027397,4]
[326779915,1715357448746,-646.73,0.00027397,4]
[326779916,1715357448756,-500.0,0.00027397,4]
[326779918,1715357448765,-500.0,0.00027397,4]
[326779920,1715357448774,-500.0,0.00027397,2]
[326779922,1715357448783,-500.0,0.00027397,4]
[326779924,1715357448792,-1546.72,0.00027397,4]
[326779926,1715357448802,-500.0,0.00027397,4]
[326779928,1715357448811,-961.69,0.00027397,4]
[326779930,1715357448820,-864.97,0.00027397,4]
[326779932,1715357448828,-500.0,0.00027397,4]
[326779934,1715357448839,-500.0,0.00027397,4]
[326779936,1715357448849,-500.0,0.00027397,4]
[326779938,1715357448858,-500.0,0.00027397,4]
[326779939,1715357448867,-500.0,0.00027397,4]
[326779940,1715357448875,-500.0,0.00027397,4]
[326779941,1715357448884,-522.56,0.00027397,4]
[326779942,1715357448894,-817.0,0.00027397,4]
[326779943,1715357448902,-500.0,0.00027397,4]
[326779944,1715357448911,-500.0,0.00027397,4]
[326779945,1715357448920,-734.9,0.00027397,4]
[326779946,1715357448929,-619.82923442,0.00027397,4]
[326779947,1715357448938,-504.16707339,0.00027397,4]
[326779948,1715357448947,-1188.41,0.00027397,4]
[326779949,1715357448955,-500.0,0.00027397,4]
[326779950,1715357448964,-505.74186882,0.00027397,4]
[326779952,1715357448973,-500.0,0.00027397,4]
[326779954,1715357448982,-500.0,0.00027397,4]
[326779955,1715357448991,-500.0,0.00027397,4]
[326779957,1715357449000,-660.97,0.00027397,4]
[326779959,1715357449009,-580.98879124,0.00027397,4]
[326779961,1715357449018,-727.79,0.00027397,4]
[326779964,1715357449028,-576.03,0.00027397,4]
[326779965,1715357449037,-500.0,0.00027397,4]
[326779967,1715357449046,-500.0,0.00027397,4]
[326779969,1715357449056,-1602.24,0.00027397,4]
[326779971,1715357449065,-452.20259254,0.00027397,4]
[326779973,1715357449074,-500.0,0.00027397,4]
[326779975,1715357449083,-500.0,0.00027397,4]
[326779977,1715357449092,-500.0,0.00027397,4]
[326779979,1715357449101,-165.35372001,0.00027397,4]
[326779981,1715357449110,-1624.41,0.00027397,4]
[326779983,1715357449119,-507.91068368,0.00027397,4]
[326779985,1715357449128,-512.16905944,0.00027397,4]
[326779987,1715357449137,-500.0,0.00027397,4]
[326779989,1715357449146,-500.0,0.00027397,4]
[326779991,1715357449155,-507.46159159,0.00027397,4]
[326779993,1715357449166,-500.0,0.00027397,4]
[326779995,1715357449176,-500.0,0.00027397,4]
[326779997,1715357449184,-810.9,0.00027397,4]
[326779999,1715357449193,-1308.75,0.00027397,4]
[326780001,1715357449202,-300.29530908,0.00027397,4]
[326780003,1715357449212,-781.38,0.00027397,4]
[326780004,1715357449221,-500.0,0.00027397,4]
[326780006,1715357449229,-150.79065029,0.00027397,4]
[326780008,1715357449238,-513.3262041,0.00027397,4]
[326780010,1715357449248,-500.0,0.00027397,4]
[326780012,1715357449256,-508.07090628,0.00027397,4]
[326780014,1715357449265,-500.0,0.00027397,4]
[326780016,1715357449275,-506.67620801,0.00027397,4]
[326780018,1715357449284,-535.0261865,0.00027397,4]
[326780020,1715357449292,-500.0,0.00027397,4]
[326780022,1715357449302,-614.56,0.00027397,4]
[326780024,1715357449311,-505.7645558,0.00027397,4]
[326780026,1715357449319,-500.0,0.00027397,2]
[326780027,1715357449329,-500.0,0.00027397,4]
[326780028,1715357449340,-512.83208454,0.00027397,4]
[326780029,1715357449348,-502.53446317,0.00027397,4]
[326780030,1715357449357,-1429.37,0.00027397,4]
[326780031,1715357449366,-500.0,0.00027397,4]
[326780032,1715357449375,-816.75,0.00027397,4]
[326780033,1715357449384,-608.17888336,0.00027397,2]
[326780034,1715357449393,-500.0,0.00027397,4]
[326780035,1715357449402,-500.0,0.00027397,4]
[326780036,1715357449411,-500.0,0.00027397,4]
[326780037,1715357449421,-1104.48,0.00027397,4]
[326780038,1715357449431,-500.0,0.00027397,4]
[326780039,1715357449440,-784.04,0.00027397,4]
[326780040,1715357449449,-871.43,0.00027397,4]
[326780041,1715357449458,-500.0,0.00027397,4]
[326780042,1715357449468,-500.0,0.00027397,4]
[326780043,1715357449477,-509.99936846,0.00027397,4]
[326780044,1715357449485,-1012.3,0.00027397,4]
[326780045,1715357449496,-1676.52,0.00027397,4]
[326780046,1715357449508,-508.91146378,0.00027397,4]
[326780047,1715357449518,-500.0,0.00027397,4]
[326780048,1715357449527,-500.0,0.00027397,4]
[326780049,1715357449536,-740.85,0.00027397,4]
[326780050,1715357449546,-500.0,0.00027397,4]
[326780051,1715357449556,-500.0,0.00027397,4]
[326780052,1715357449565,-500.0,0.00027397,4]
[326780053,1715357449574,-500.0,0.00027397,4]
[326780054,1715357449586,-500.0,0.00027397,4]
[326780055,1715357449595,-536.59,0.00027397,4]
[326780056,1715357449604,-1000.99,0.00027397,4]
[326780057,1715357449613,-500.0,0.00027397,4]
[326780058,1715357449622,-1993.94,0.00027397,4]
[326780059,1715357449631,-500.0,0.00027397,4]
[326780060,1715357449640,-500.0,0.00027397,4]
[326780061,1715357449648,-500.0,0.00027397,4]
[326780062,1715357449657,-500.0,0.00027397,4]
[326780063,1715357449666,-509.08706271,0.00027397,4]
[326780064,1715357449675,-501.66559842,0.00027397,4]
[326780065,1715357449684,-511.5190098,0.00027397,4]
[326780066,1715357449693,-1769.33,0.00027397,4]
[326780067,1715357449702,-500.0,0.00027397,4]
[326780068,1715357449711,-500.0,0.00027397,4]
[326780069,1715357449721,-500.0,0.00027397,4]
[326780070,1715357449730,-500.0,0.00027397,4]
[326780071,1715357449739,-1121.77,0.00027397,4]
[326780072,1715357449749,-500.0,0.00027397,4]
[326780073,1715357449758,-500.0,0.00027397,4]
[326780074,1715357449768,-500.0,0.00027397,4]
[326780075,1715357449777,-500.0,0.00027397,4]
[326780076,1715357449786,-500.0,0.00027397,4]
[326780077,1715357449795,-500.0,0.00027397,4]
[326780078,1715357449805,-717.57,0.00027397,4]
[326780079,1715357449814,-751.17,0.00027397,4]
[326780080,1715357449823,-500.0,0.00027397,4]
[326780081,1715357449835,-500.0,0.00027397,4]
[326780082,1715357449844,-502.45232601,0.00027397,4]
[326780083,1715357449853,-1754.96,0.00027397,4]
[326780084,1715357449861,-1018.51,0.00027397,4]
[326780085,1715357449870,-500.0,0.00027397,4]
[326780086,1715357449879,-500.0,0.00027397,4]
[326780087,1715357449887,-797.98,0.00027397,4]
[326780088,1715357449896,-500.0,0.00027397,4]
[326780089,1715357449906,-510.65338061,0.00027397,4]
[326780090,1715357449915,-1321.35,0.00027397,4]
[326780091,1715357449924,-500.0,0.00027397,4]
[326780092,1715357449933,-500.0,0.00027397,4]
[326780093,1715357449942,-512.80725009,0.00027397,4]
[326780095,1715357449951,-531.08224819,0.00027397,4]
[326780097,1715357449960,-500.0,0.00027397,4]
[326780099,1715357449969,-559.77,0.00027397,4]
[326780101,1715357449978,-1361.23,0.00027397,4]
[326780103,1715357449986,-500.0,0.00027397,4]
[326780105,1715357449995,-515.48001556,0.00027397,4]
[326780107,1715357450004,-1694.35,0.00027397,4]
[326780109,1715357450013,-300.0,0.00027397,2]
[326780111,1715357450022,-593.84,0.00027397,4]
[326780113,1715357450031,-500.0,0.00027397,4]
[326780115,1715357450040,-500.0,0.00027397,4]
[326780117,1715357450049,-500.0,0.00027397,4]
[326780119,1715357450058,-729.78,0.00027397,4]
[326780121,1715357450068,-500.0,0.00027397,4]
[326780123,1715357450077,-500.0,0.00027397,4]
[326780125,1715357450089,-566.91,0.00027397,4]
[326780127,1715357450098,-500.0,0.00027397,4]
[326780129,1715357450108,-509.61485626,0.00027397,4]
[326780131,1715357450117,-565.8365834,0.00027397,4]
[326780133,1715357450127,-500.0,0.00027397,4]
[326780135,1715357450135,-532.14912258,0.00027397,4]
[326780137,1715357450145,-541.29,0.00027397,4]
[326780139,1715357450153,-500.0,0.00027397,4]
[326780141,1715357450162,-500.0,0.00027397,4]
[326780143,1715357450171,-500.0,0.00027397,4]
[326780145,1715357450181,-427.38878651,0.00027397,4]
[326780147,1715357450190,-500.0,0.00027397,4]
[326780149,1715357450199,-500.0,0.00027397,4]
[326780152,1715357450210,-1492.67,0.00027397,4]
[326780153,1715357450218,-557.53,0.00027397,4]
[326780155,1715357450227,-11160.22698157,0.00027397,2]
[326780157,1715357450236,-1515.89,0.00027397,4]
[326780159,1715357450245,-500.0,0.00027397,4]
[326780161,1715357450254,-510.41760712,0.00027397,4]
[326780163,1715357450263,-500.0,0.00027397,4]
[326780165,1715357450271,-500.0,0.00027397,4]
[326780167,1715357450280,-1092.66,0.00027397,4]
[326780169,1715357450290,-500.0,0.00027397,4]
[326780171,1715357450298,-500.0,0.00027397,4]
[326780173,1715357450307,-500.0,0.00027397,4]
[326780175,1715357450316,-500.0,0.00027397,4]
[326780177,1715357450325,-500.0,0.00027397,4]
[326780179,1715357450336,-500.0,0.00027397,4]
[326780181,1715357450345,-500.92,0.00027397,4]
[326780183,1715357450354,-500.0,0.00027397,4]
[326780185,1715357450363,-1505.65,0.00027397,4]
[326780187,1715357450372,-500.0,0.00027397,4]
[326780189,1715357450381,-500.0,0.00027397,4]
[326780191,1715357450390,-500.0,0.00027397,4]
[326780193,1715357450399,-504.25403612,0.00027397,4]
[326780195,1715357450408,-500.0,0.00027397,4]
[326780197,1715357450417,-805.81,0.00027397,4]
[326780199,1715357450426,-500.0,0.00027397,4]
[326780201,1715357450434,-508.69077751,0.00027397,4]
[326780203,1715357450443,-500.0,0.00027397,4]
[326780205,1715357450452,-151.0,0.00027397,7]
[326780207,1715357450461,-500.0,0.00027397,4]
[326780209,1715357450470,-500.0,0.00027397,4]
[326780211,1715357450478,-151.0,0.00027397,7]
[326780213,1715357450487,-500.0,0.00027397,4]
[326780215,1715357450501,-663.62,0.00027397,4]
[326780217,1715357450510,-822.42,0.00027397,4]
[326780218,1715357450519,-151.0,0.00027397,7]
[326780221,1715357450528,-500.0,0.00027397,4]
[326780222,1715357450539,-500.0,0.00027397,4]
[326780225,1715357450548,-500.0,0.00027397,4]
[326780226,1715357450557,-1331.78,0.00027397,4]
[326780229,1715357450566,-500.0,0.00027397,4]
[326780231,1715357450575,-528.92,0.00027397,4]
[326780232,1715357450590,-1173.74,0.00027397,4]
[326780234,1715357450599,-696.44,0.00027397,4]
[326780236,1715357450607,-500.0,0.00027397,4]
[326780238,1715357450616,-508.06611873,0.00027397,4]
[326780240,1715357450626,-500.0,0.00027397,4]
[326780242,1715357450635,-505.38571167,0.00027397,4]
[326780244,1715357450644,-503.03519195,0.00027397,4]
[326780247,1715357450653,-151.0,0.00027397,7]
[326780248,1715357450662,-500.0,0.00027397,4]
[326780250,1715357450671,-500.0,0.00027397,4]
[326780252,1715357450681,-500.0,0.00027397,4]
[326780255,1715357450690,-151.0,0.00027397,7]
[326780256,1715357450699,-1144.18,0.00027397,4]
[326780258,1715357450708,-151.0,0.00027397,7]
[326780260,1715357450718,-500.0,0.00027397,4]
[326780263,1715357450727,-151.0,0.00027397,7]
[326780264,1715357450736,-500.0,0.00027397,4]
[326780266,1715357450745,-651.87,0.00027397,4]
[326780268,1715357450754,-151.0,0.00027397,7]
[326780271,1715357450763,-500.0,0.00027397,4]
[326780272,1715357450772,-500.0,0.00027397,4]
[326780274,1715357450782,-643.52,0.00027397,4]
[326780277,1715357450791,-612.68,0.00027397,4]
[326780278,1715357450800,-502.79208047,0.00027397,4]
[326780281,1715357450810,-500.0,0.00027397,4]
[326780283,1715357450819,-576.33825841,0.00027397,4]
[326780285,1715357450828,-500.0,0.00027397,4]
[326780286,1715357450839,-505.02997263,0.00027397,4]
[326780288,1715357450848,-597.59,0.00027397,4]
[326780290,1715357450857,-1215.1,0.00027397,4]
[326780292,1715357450866,-755.23,0.00027397,4]
[326780294,1715357450876,-500.0,0.00027397,4]
[326780297,1715357450886,-151.0,0.00027397,7]
[326780299,1715357450894,-151.0,0.00027397,7]
[326780301,1715357450904,-1010.71,0.00027397,4]
[326780303,1715357450913,-151.0,0.00027397,7]
[326780305,1715357450922,-2060.97,0.00027397,4]
[326780306,1715357450931,-162.398079,0.00027397,7]
[326780309,1715357450940,-500.0,0.00027397,4]
[326780310,1715357450949,-574.93,0.00027397,4]
[326780312,1715357450958,-649.22,0.00027397,4]
[326780315,1715357450967,-500.0,0.00027397,4]
[326780316,1715357450976,-500.0,0.00027397,4]
[326780317,1715357450986,-606.15,0.00027397,4]
[326780318,1715357450995,-500.0,0.00027397,4]
[326780319,1715357451004,-538.62,0.00027397,4]
[326780320,1715357451013,-500.0,0.00027397,4]
[326780321,1715357451022,-1976.92,0.00027397,4]
[326780322,1715357451031,-500.0,0.00027397,4]
[326780323,1715357451040,-2000.0,0.00027397,4]
[326780324,1715357451048,-785.85,0.00027397,4]
[326780325,1715357451057,-513.72362255,0.00027397,4]
[326780326,1715357451066,-620.87,0.00027397,4]
[326780328,1715357451075,-500.0,0.00027397,4]
[326780329,1715357451086,-500.0,0.00027397,4]
[326780331,1715357451095,-873.11,0.00027397,4]
[326780333,1715357451105,-500.0,0.00027397,4]
[326780335,1715357451114,-500.0,0.00027397,4]
[326780337,1715357451123,-1347.95,0.00027397,4]
[326780339,1715357451132,-514.94589098,0.00027397,4]
[326780340,1715357451141,-500.0,0.00027397,4]
[326780341,1715357451150,-763.98,0.00027397,4]
[326780342,1715357451159,-500.0,0.00027397,4]
[326780343,1715357451168,-500.0,0.00027397,4]
[326780344,1715357451177,-620.98,0.00027397,4]
[326780345,1715357451187,-343.82813295,0.00027397,4]
[326780346,1715357451196,-190.42883368,0.00027397,4]
[326780347,1715357451205,-500.0,0.00027397,4]
[326780348,1715357451214,-870.53,0.00027397,4]
[326780349,1715357451223,-500.0,0.00027397,4]
[326780351,1715357451233,-500.0,0.00027397,4]
[326780353,1715357451242,-1526.95,0.00027397,4]
[326780355,1715357451252,-510.14518194,0.00027397,4]
[326780357,1715357451261,-500.0,0.00027397,4]
[326780359,1715357451270,-151.0,0.00027397,7]
[326780361,1715357451280,-500.0,0.00027397,4]
[326780363,1715357451289,-565.85,0.00027397,4]
[326780365,1715357451298,-500.0,0.00027397,4]
[326780367,1715357451307,-582.62349635,0.00027397,4]
[326780369,1715357451316,-500.0,0.00027397,4]
[326780371,1715357451325,-500.0,0.00027397,4]
[326780373,1715357451337,-508.72693872,0.00027397,4]
[326780376,1715357451347,-936.62,0.00027397,4]
[326780378,1715357451356,-939.26,0.00027397,4]
[326780379,1715357451365,-500.0,0.00027397,4]
[326780382,1715357451375,-500.0,0.00027397,4]
[326780384,1715357451385,-500.0,0.00027397,4]
[326780386,1715357451394,-603.4,0.00027397,4]
[326780388,1715357451404,-2201.62,0.00027397,4]
[326780390,1715357451413,-667.18,0.00027397,4]
[326780406,1715357451571,-618.76,0.00027397,4]
[326780407,1715357451583,-500.0,0.00027397,4]
[326780408,1715357451597,-500.0,0.00027397,4]
[326780409,1715357451606,-500.0,0.00027397,4]
[326780410,1715357451615,-794.15,0.00027397,4]
[326780411,1715357451625,-554.85,0.00027397,4]
[326780412,1715357451635,-869.23,0.00027397,4]
[326780413,1715357451644,-509.5355158,0.00027397,4]
[326780414,1715357451653,-528.01595354,0.00027397,4]
[326780415,1715357451663,-809.68,0.00027397,4]
[326780416,1715357451673,-500.0,0.00027397,4]
[326780417,1715357451683,-500.0,0.00027397,4]
[326780418,1715357451693,-500.0,0.00027397,4]
[326780419,1715357451703,-521.40839492,0.00027397,4]
[326780420,1715357451713,-1425.2,0.00027397,4]
[326780421,1715357451722,-500.0,0.00027397,4]
[326780422,1715357451731,-516.29530948,0.00027397,4]
[326780423,1715357451741,-500.72551906,0.00027397,4]
[326780424,1715357451750,-1575.04,0.00027397,4]
[326780425,1715357451759,-663.0,0.00027397,4]
[326780426,1715357451769,-509.52156158,0.00027397,4]
[326780427,1715357451778,-500.0,0.00027397,4]
[326780428,1715357451788,-519.78201697,0.00027397,4]
[326780429,1715357451798,-500.0,0.00027397,4]
[326780430,1715357451807,-511.99702725,0.00027397,4]
[326780431,1715357451816,-502.1024953,0.00027397,2]
[326780432,1715357451825,-1325.94,0.00027397,4]
[326780433,1715357451836,-512.78548478,0.00027397,4]
[326780434,1715357451845,-901.76,0.00027397,4]
[326780435,1715357451854,-500.0,0.00027397,4]
[326780436,1715357451863,-500.0,0.00027397,4]
[326780437,1715357451872,-513.06925439,0.00027397,4]
[326780438,1715357451882,-915.18,0.00027397,4]
[326780439,1715357451890,-504.37703962,0.00027397,4]
[326780440,1715357451900,-541.69,0.00027397,4]
[326780441,1715357451910,-500.0,0.00027397,4]
[326780442,1715357451920,-500.0,0.00027397,4]
[326780443,1715357451930,-514.86056226,0.00027397,4]
[326780444,1715357451939,-679.83,0.00027397,4]
[326780445,1715357451949,-510.96990027,0.00027397,4]
[326780446,1715357451958,-500.0,0.00027397,4]
[326780447,1715357451968,-500.0,0.00027397,4]
[326780448,1715357451977,-510.69398888,0.00027397,4]
[326780449,1715357451986,-1899.53,0.00027397,4]
[326780450,1715357451996,-892.67,0.00027397,4]
[326780451,1715357452006,-500.0,0.00027397,4]
[326780452,1715357452015,-500.0,0.00027397,4]
[326780453,1715357452026,-500.0,0.00027397,4]
[326780454,1715357452035,-500.0,0.00027397,4]
[326780455,1715357452044,-500.0,0.00027397,4]
[326780456,1715357452055,-512.71003318,0.00027397,4]
[326780457,1715357452065,-500.0,0.00027397,4]
[326780458,1715357452074,-500.0,0.00027397,4]
[326780459,1715357452086,-225.1982417,0.00027397,4]
[326780460,1715357452095,-506.7249441,0.00027397,4]
[326780461,1715357452104,-500.0,0.00027397,4]
[326780462,1715357452112,-500.0,0.00027397,4]
[326780463,1715357452121,-506.15987727,0.00027397,4]
[326780464,1715357452130,-500.0,0.00027397,4]
[326780465,1715357452140,-500.0,0.00027397,4]
[326780466,1715357452150,-1629.9,0.00027397,4]
[326780467,1715357452159,-505.03491366,0.00027397,4]
[326780468,1715357452168,-509.68683135,0.00027397,4]
[326780469,1715357452178,-510.0,0.00027397,4]
[326780470,1715357452187,-500.0,0.00027397,4]
[326780471,1715357452196,-804.76,0.00027397,4]
[326780472,1715357452206,-501.68529348,0.00027397,4]
[326780473,1715357452215,-2360.6,0.00027397,4]
[326780474,1715357452224,-513.96055716,0.00027397,4]
[326780475,1715357452234,-812.88,0.00027397,4]
[326780476,1715357452243,-505.24798651,0.00027397,4]
[326780477,1715357452253,-609.19,0.00027397,4]
[326780478,1715357452262,-500.0,0.00027397,4]
[326780479,1715357452271,-500.0,0.00027397,4]
[326780480,1715357452281,-500.0,0.00027397,4]
[326780481,1715357452290,-500.0,0.00027397,4]
[326780482,1715357452299,-500.0,0.00027397,4]
[326780483,1715357452308,-500.0,0.00027397,4]
[326780484,1715357452317,-512.4084401,0.00027397,4]
[326780485,1715357452326,-500.0,0.00027397,4]
[326780486,1715357452336,-995.1,0.00027397,4]
[326780487,1715357452345,-451.96463287,0.00027397,4]
[326780488,1715357452354,-516.37186348,0.00027397,4]
[326780489,1715357452363,-519.73949472,0.00027397,4]
[326780490,1715357452373,-504.70879092,0.00027397,4]
[326780491,1715357452382,-500.0,0.00027397,4]
[326780492,1715357452391,-500.0,0.00027397,4]
[326780493,1715357452401,-912.66,0.00027397,4]
[326780494,1715357452410,-616.83000159,0.00027397,4]
[326780495,1715357452419,-500.0,0.00027397,4]
[326780496,1715357452428,-500.0,0.00027397,4]
[326780497,1715357452438,-614.52108874,0.00027397,4]
[326780498,1715357452447,-5019.85903619,0.00027397,4]
[326780499,1715357452456,-509.22383296,0.00027397,4]
[326780500,1715357452465,-504.38070999,0.00027397,4]
[326780501,1715357452475,-500.0,0.00027397,4]
[326780502,1715357452484,-516.40081365,0.00027397,4]
[326780503,1715357452497,-518.35021072,0.00027397,4]
[326780504,1715357452506,-991.31,0.00027397,4]
[326780505,1715357452515,-500.0,0.00027397,4]
[326780506,1715357452525,-920.34,0.00027397,4]
[326780507,1715357452534,-516.58,0.00027397,4]
[326780508,1715357452544,-507.21580709,0.00027397,4]
[326780509,1715357452554,-500.0,0.00027397,4]
[326780510,1715357452563,-2072.37,0.00027397,4]
[326780511,1715357452572,-500.0,0.00027397,4]
[326780512,1715357452585,-547.54277682,0.00027397,4]
[326780513,1715357452594,-500.0,0.00027397,4]
[326780514,1715357452603,-618.52,0.00027397,4]
[326780515,1715357452612,-500.0,0.00027397,4]
[326780516,1715357452622,-500.0,0.00027397,4]
[326780518,1715357452631,-507.71085422,0.00027397,4]
[326780520,1715357452640,-500.0,0.00027397,4]
[326780522,1715357452649,-153.11232,0.00027397,7]
[326780524,1715357452659,-153.11232,0.00027397,7]
[326780526,1715357452668,-153.11232,0.00027397,7]
[326780528,1715357452678,-500.0,0.00027397,4]
[326780530,1715357452686,-153.11232,0.00027397,7]
[326780532,1715357452696,-153.11232,0.00027397,7]
[326780535,1715357452706,-500.0,0.00027397,4]
[326780537,1715357452715,-500.0,0.00027397,4]
[326780539,1715357452724,-500.0,0.00027397,4]
[326780541,1715357452734,-520.17439195,0.00027397,4]
[326780543,1715357452743,-500.0,0.00027397,4]
[326780545,1715357452753,-153.11232,0.00027397,7]
[326780547,1715357452762,-890.55,0.00027397,4]
[326780549,1715357452771,-153.11232,0.00027397,7]
[326780551,1715357452781,-153.11232,0.00027397,7]
[326780553,1715357452790,-153.11232,0.00027397,7]
[326780555,1715357452799,-153.11232,0.00027397,7]
[326780557,1715357452809,-845.81,0.00027397,4]
[326780559,1715357452818,-642.42383876,0.00027397,4]
[326780560,1715357452827,-513.33890456,0.00027397,4]
[326780563,1715357452841,-706.0,0.00027397,4]
[326780565,1715357452850,-1314.04,0.00027397,4]
[326780567,1715357452859,-1611.78,0.00027397,4]
[326780569,1715357452868,-500.0,0.00027397,4]
[326780571,1715357452878,-500.0,0.00027397,4]
[326780573,1715357452887,-305.51798453,0.00027397,4]
[326780575,1715357452895,-500.0,0.00027397,4]
[326780577,1715357452905,-500.0,0.00027397,4]
[326780579,1715357452914,-500.0,0.00027397,4]
[326780581,1715357452923,-500.0,0.00027397,4]
[326780583,1715357452932,-869.02,0.00027397,4]
[326780585,1715357452941,-570.88807256,0.00027397,4]
[326780587,1715357452950,-1113.08,0.00027397,4]
[326780589,1715357452959,-500.0,0.00027397,4]
[326780591,1715357452970,-500.0,0.00027397,4]
[326780593,1715357452979,-512.38374939,0.00027397,4]
[326780595,1715357452988,-223.86405893,0.00027397,4]
[326780597,1715357452997,-824.4,0.00027397,4]
[326780599,1715357453006,-502.06,0.00027397,4]
[326780601,1715357453016,-500.0,0.00027397,4]
[326780603,1715357453025,-1459.47,0.00027397,4]
[326780605,1715357453034,-2047.87,0.00027397,4]
[326780606,1715357453043,-509.36646109,0.00027397,4]
[326780607,1715357453053,-518.4614438,0.00027397,4]
[326780608,1715357453062,-500.0,0.00027397,4]
[326780609,1715357453072,-567.92,0.00027397,4]
[326780610,1715357453081,-500.0,0.00027397,4]
[326780611,1715357453093,-500.0,0.00027397,4]
[326780612,1715357453102,-907.77,0.00027397,4]
[326780613,1715357453111,-500.0,0.00027397,4]
[326780614,1715357453120,-516.78902518,0.00027397,4]
[326780615,1715357453129,-570.28,0.00027397,4]
[326780617,1715357453138,-500.0,0.00027397,4]
[326780619,1715357453147,-500.0,0.00027397,4]
[326780621,1715357453157,-500.0,0.00027397,4]
[326780623,1715357453166,-505.3690569,0.00027397,4]
[326780625,1715357453175,-2493.7,0.00027397,4]
[326780627,1715357453185,-500.0,0.00027397,4]
[326780629,1715357453194,-500.0,0.00027397,4]
[326780631,1715357453203,-514.94986211,0.00027397,4]
[326780633,1715357453211,-514.26618437,0.00027397,4]
[326780635,1715357453221,-500.0,0.00027397,4]
[326780637,1715357453230,-500.0,0.00027397,4]
[326780639,1715357453239,-197.41748132,0.00027397,4]
[326780641,1715357453248,-1167.08,0.00027397,4]
[326780643,1715357453257,-888.91,0.00027397,4]
[326780645,1715357453266,-500.0,0.00027397,4]
[326780647,1715357453275,-1536.8,0.00027397,4]
[326780649,1715357453284,-500.0,0.00027397,4]
[326780651,1715357453293,-1133.67,0.00027397,4]
[326780653,1715357453302,-500.0,0.00027397,4]
[326780655,1715357453311,-500.0,0.00027397,4]
[326780657,1715357453320,-500.0,0.00027397,4]
[326780659,1715357453329,-689.45,0.00027397,4]
[326780661,1715357453340,-500.0,0.00027397,4]
[326780663,1715357453349,-580.23,0.00027397,4]
[326780665,1715357453359,-517.87711761,0.00027397,4]
[326780667,1715357453368,-591.37,0.00027397,4]
[326780669,1715357453377,-631.49,0.00027397,4]
[326780671,1715357453387,-952.9,0.00027397,4]
[326780673,1715357453396,-500.0,0.00027397,4]
[326780675,1715357453405,-903.83,0.00027397,4]
[326780677,1715357453415,-511.03948121,0.00027397,4]
[326780679,1715357453424,-838.59,0.00027397,4]
[326780681,1715357453434,-506.70375865,0.00027397,4]
[326780683,1715357453444,-513.56114388,0.00027397,4]
[326780685,1715357453453,-786.1,0.00027397,4]
[326780688,1715357453462,-500.0,0.00027397,4]
[326780690,1715357453471,-500.0,0.00027397,4]
[326780692,1715357453481,-500.0,0.00027397,4]
[326780693,1715357453491,-470.95132341,0.00027397,4]
[326780695,1715357453500,-545.9,0.00027397,4]
[326780698,1715357453514,-500.0,0.00027397,4]
[326780700,1715357453524,-500.0,0.00027397,4]
[326780701,1715357453533,-509.82093314,0.00027397,4]
[326780704,1715357453542,-516.20106522,0.00027397,4]